[Event "Early-Titled-Tuesday-Blitz-April-16-2024"]
[Site "Chess.com"]
[Date "2024.04.16"]
[Round "7"]
[White "Hudijegszid"]
[Black "kleber2007"]
[Result "1-0"]
[WhiteElo "2471"]
[BlackElo "2578"]
[TimeControl "180+1"]
[EndTime "9:20:02 PDT"]
[Termination "Hudijegszid won by resignation"]

1. Nf3 {[%clk 0:03:00.9]} 1... c5 {[%clk 0:02:59.2]} 2. g3 {[%clk 0:03:00.1]}
2... g6 {[%clk 0:02:59.6]} 3. Bg2 {[%clk 0:03:00.8]} 3... Bg7 {[%clk 0:03:00.1]}
4. O-O {[%clk 0:03:01.6]} 4... Nc6 {[%clk 0:03:00.6]} 5. c3 {[%clk 0:03:02.2]}
5... e5 {[%clk 0:02:59.4]} 6. c4 {[%clk 0:02:55.4]} 6... Nge7 {[%clk 0:02:57.9]}
7. Nc3 {[%clk 0:02:55.9]} 7... O-O {[%clk 0:02:57.8]} 8. a3 {[%clk 0:02:52.5]}
8... d6 {[%clk 0:02:57]} 9. d3 {[%clk 0:02:51.6]} 9... Be6 {[%clk 0:02:55.2]}
10. Ng5 {[%clk 0:02:51.6]} 10... Bf5 {[%clk 0:02:44.1]} 11. Bd2 {[%clk
0:02:47.1]} 11... h6 {[%clk 0:02:43.8]} 12. Nf3 {[%clk 0:02:47.3]} 12... Qd7
{[%clk 0:02:41.9]} 13. Ne1 {[%clk 0:02:46.3]} 13... Bh3 {[%clk 0:02:40.9]} 14.
Nc2 {[%clk 0:02:46]} 14... Bxg2 {[%clk 0:02:38.9]} 15. Kxg2 {[%clk 0:02:46.6]}
15... d5 {[%clk 0:02:38.8]} 16. cxd5 {[%clk 0:02:46.4]} 16... Nxd5 {[%clk
0:02:39.7]} 17. Ne4 {[%clk 0:02:28.7]} 17... b6 {[%clk 0:02:39.1]} 18. b4 {[%clk
0:02:06.9]} 18... f5 {[%clk 0:02:20.4]} 19. Nc3 {[%clk 0:02:05.9]} 19... cxb4
{[%clk 0:02:07.1]} 20. axb4 {[%clk 0:02:04.6]} 20... Ncxb4 {[%clk 0:02:06.3]}
21. Nxb4 {[%clk 0:02:04.6]} 21... Nxb4 {[%clk 0:01:57.7]} 22. Qb3+ {[%clk
0:02:04]} 22... Qf7 {[%clk 0:01:52.5]} 23. Qxb4 {[%clk 0:02:03.1]} 23... e4
{[%clk 0:01:52.7]} 24. dxe4 {[%clk 0:01:48.1]} 24... fxe4 {[%clk 0:01:52.3]} 25.
Rac1 {[%clk 0:01:44.6]} 25... Rad8 {[%clk 0:01:45.7]} 26. Be3 {[%clk 0:01:44.5]}
26... Rfe8 {[%clk 0:01:34.8]} 27. Nxe4 {[%clk 0:01:33.1]} 27... Bd4 {[%clk
0:01:00.6]} 28. Bxd4 {[%clk 0:01:17.7]} 28... Rxe4 {[%clk 0:01:00.3]} 29. e3
{[%clk 0:01:16]} 29... h5 {[%clk 0:00:54]} 30. Qc4 {[%clk 0:01:10.6]} 30... h4
{[%clk 0:00:52.7]} 31. Qxf7+ {[%clk 0:01:10.5]} 31... Kxf7 {[%clk 0:00:53.6]}
32. Rc7+ {[%clk 0:01:10]} 32... Re7 {[%clk 0:00:53.2]} 33. Rxe7+ {[%clk
0:01:10.1]} 33... Kxe7 {[%clk 0:00:53.3]} 34. gxh4 {[%clk 0:01:10.6]} 34... Rb8
{[%clk 0:00:50.4]} 35. Rb1 {[%clk 0:01:08.3]} 35... Kd6 {[%clk 0:00:48.5]} 36.
f4 {[%clk 0:01:07]} 36... Kc6 {[%clk 0:00:48.3]} 37. Kf3 {[%clk 0:01:06.7]}
37... a5 {[%clk 0:00:48.1]} 38. Rg1 {[%clk 0:01:06.1]} 38... b5 {[%clk
0:00:42.8]} 39. Rxg6+ {[%clk 0:01:05.5]} 39... Kd5 {[%clk 0:00:43.2]} 40. h5
{[%clk 0:01:04.2]} 40... b4 {[%clk 0:00:40.4]} 41. h6 {[%clk 0:01:01.3]} 41...
a4 {[%clk 0:00:38.6]} 42. h7 {[%clk 0:01:01.1]} 42... a3 {[%clk 0:00:37.5]} 43.
h8=Q {[%clk 0:00:59.7]} 43... Rxh8 {[%clk 0:00:37.7]} 44. Bxh8 {[%clk
0:00:59.1]} 1-0

[Event "Early-Titled-Tuesday-Blitz-April-16-2024"]
[Site "Chess.com"]
[Date "2024.04.16"]
[Round "7"]
[White "Shuvalov"]
[Black "Schattman"]
[Result "1/2-1/2"]
[WhiteElo "2627"]
[BlackElo "2500"]
[TimeControl "180+1"]
[EndTime "9:20:04 PDT"]
[Termination "Game drawn by repetition"]

1. d4 {[%clk 0:03:00.9]} 1... d5 {[%clk 0:02:59.1]} 2. c4 {[%clk 0:03:01]} 2...
e6 {[%clk 0:02:59.6]} 3. Nf3 {[%clk 0:03:00.9]} 3... Nf6 {[%clk 0:02:59.1]} 4.
Nc3 {[%clk 0:03:01.1]} 4... c5 {[%clk 0:02:56.5]} 5. cxd5 {[%clk 0:03:00.6]}
5... Nxd5 {[%clk 0:02:56.5]} 6. e4 {[%clk 0:02:58.1]} 6... Nxc3 {[%clk
0:02:56.8]} 7. bxc3 {[%clk 0:02:59]} 7... cxd4 {[%clk 0:02:57.2]} 8. cxd4 {[%clk
0:02:59.9]} 8... Bb4+ {[%clk 0:02:57.2]} 9. Bd2 {[%clk 0:03:00.4]} 9... Bxd2+
{[%clk 0:02:57.4]} 10. Qxd2 {[%clk 0:03:01]} 10... O-O {[%clk 0:02:57.3]} 11. h4
{[%clk 0:03:01.6]} 11... b6 {[%clk 0:02:53.9]} 12. h5 {[%clk 0:03:00.5]} 12...
h6 {[%clk 0:02:53.5]} 13. Bd3 {[%clk 0:02:57.9]} 13... Ba6 {[%clk 0:02:49.5]}
14. Bxa6 {[%clk 0:02:52.5]} 14... Nxa6 {[%clk 0:02:50.4]} 15. O-O {[%clk
0:02:52.4]} 15... Rc8 {[%clk 0:02:36.9]} 16. Rad1 {[%clk 0:02:47.2]} 16... Qd6
{[%clk 0:02:33.6]} 17. Rfe1 {[%clk 0:02:43.3]} 17... Rfd8 {[%clk 0:02:27.9]} 18.
Ne5 {[%clk 0:02:39.7]} 18... Nb4 {[%clk 0:02:11.5]} 19. Rc1 {[%clk 0:01:43.8]}
19... Nc6 {[%clk 0:02:01.3]} 20. Nxc6 {[%clk 0:01:41.2]} 20... Rxc6 {[%clk
0:02:01.5]} 21. Rxc6 {[%clk 0:01:39.1]} 21... Qxc6 {[%clk 0:02:01.6]} 22. Qd3
{[%clk 0:01:23]} 22... b5 {[%clk 0:01:19.8]} 23. Rd1 {[%clk 0:01:18.1]} 23...
Qc4 {[%clk 0:01:08]} 24. Qd2 {[%clk 0:01:08.8]} 24... b4 {[%clk 0:00:58.1]} 25.
f3 {[%clk 0:00:53.8]} 25... a5 {[%clk 0:00:54.8]} 26. d5 {[%clk 0:00:53.3]}
26... exd5 {[%clk 0:00:41.7]} 27. exd5 {[%clk 0:00:54.2]} 27... Qc5+ {[%clk
0:00:22.9]} 28. Kf1 {[%clk 0:00:52.3]} 28... Qc4+ {[%clk 0:00:21.3]} 29. Kg1
{[%clk 0:00:52.2]} 29... Qc5+ {[%clk 0:00:21.2]} 30. Kf1 {[%clk 0:00:49.1]}
30... Qc4+ {[%clk 0:00:21]} 31. Kg1 {[%clk 0:00:45.1]} 1/2-1/2

[Event "Early-Titled-Tuesday-Blitz-April-16-2024"]
[Site "Chess.com"]
[Date "2024.04.16"]
[Round "7"]
[White "knightinshiningarmour16"]
[Black "HaryKane"]
[Result "1/2-1/2"]
[WhiteElo "2343"]
[BlackElo "2533"]
[TimeControl "180+1"]
[EndTime "9:20:10 PDT"]
[Termination "Game drawn by repetition"]

1. d4 {[%clk 0:02:56.1]} 1... e6 {[%clk 0:02:54.3]} 2. Nf3 {[%clk 0:02:55.3]}
2... d5 {[%clk 0:02:54.5]} 3. Bg5 {[%clk 0:02:55.4]} 3... Be7 {[%clk 0:02:51.2]}
4. Bf4 {[%clk 0:02:55.6]} 4... Nf6 {[%clk 0:02:48.8]} 5. e3 {[%clk 0:02:55.7]}
5... O-O {[%clk 0:02:48.9]} 6. h3 {[%clk 0:02:55.8]} 6... c5 {[%clk 0:02:48.7]}
7. c3 {[%clk 0:02:55.8]} 7... Nc6 {[%clk 0:02:45.6]} 8. Bd3 {[%clk 0:02:55.2]}
8... Nd7 {[%clk 0:02:33.3]} 9. h4 {[%clk 0:02:40.8]} 9... h6 {[%clk 0:02:30.1]}
10. Ng5 {[%clk 0:02:22.7]} 10... hxg5 {[%clk 0:01:56]} 11. hxg5 {[%clk
0:02:21.6]} 11... g6 {[%clk 0:01:54.5]} 12. Qg4 {[%clk 0:02:18.2]} 12... Kg7
{[%clk 0:01:47.7]} 13. Rh6 {[%clk 0:02:09.8]} 13... Rh8 {[%clk 0:01:42.4]} 14.
Qh4 {[%clk 0:01:55.6]} 14... e5 {[%clk 0:01:38.4]} 15. dxe5 {[%clk 0:01:49.8]}
15... Ndxe5 {[%clk 0:01:36.3]} 16. Bc2 {[%clk 0:01:36.2]} 16... Ng4 {[%clk
0:01:21.2]} 17. Rxh8 {[%clk 0:01:34.6]} 17... Qxh8 {[%clk 0:01:11]} 18. Qg3
{[%clk 0:01:34.2]} 18... Qh1+ {[%clk 0:01:04.4]} 19. Ke2 {[%clk 0:01:34.1]}
19... Nh2 {[%clk 0:01:00.8]} 20. Nd2 {[%clk 0:01:24.6]} 20... Qxa1 {[%clk
0:00:57.5]} 21. Qxh2 {[%clk 0:01:23.5]} 21... Bg4+ {[%clk 0:00:51]} 22. f3
{[%clk 0:01:22.7]} 22... Rh8 {[%clk 0:00:24]} 23. Be5+ {[%clk 0:01:18]} 23...
Nxe5 {[%clk 0:00:18.7]} 24. Qxe5+ {[%clk 0:01:18.9]} 24... Kg8 {[%clk
0:00:17.6]} 25. Qxe7 {[%clk 0:01:11.5]} 25... Be6 {[%clk 0:00:12.7]} 26. Bxg6
{[%clk 0:01:07.6]} 26... Rh1 {[%clk 0:00:08.8]} 27. Qd8+ {[%clk 0:00:56.9]}
27... Kg7 {[%clk 0:00:08.4]} 28. Qf6+ {[%clk 0:00:57.1]} 28... Kg8 {[%clk
0:00:08.8]} 29. Qd8+ {[%clk 0:00:57.3]} 29... Kg7 {[%clk 0:00:09.3]} 30. Qf6+
{[%clk 0:00:57.5]} 30... Kg8 {[%clk 0:00:09.7]} 31. Qd8+ {[%clk 0:00:56.2]}
1/2-1/2

[Event "Early-Titled-Tuesday-Blitz-April-16-2024"]
[Site "Chess.com"]
[Date "2024.04.16"]
[Round "7"]
[White "Yushko_Olga"]
[Black "ploxoi"]
[Result "1-0"]
[WhiteElo "2267"]
[BlackElo "2402"]
[TimeControl "180+1"]
[EndTime "9:20:13 PDT"]
[Termination "Yushko_Olga won by resignation"]

1. d4 {[%clk 0:02:59.8]} 1... e6 {[%clk 0:02:59.8]} 2. c4 {[%clk 0:02:59.6]}
2... d5 {[%clk 0:02:58.6]} 3. cxd5 {[%clk 0:02:59.7]} 3... exd5 {[%clk
0:02:58.7]} 4. Nc3 {[%clk 0:03:00.6]} 4... c6 {[%clk 0:02:58.9]} 5. Bf4 {[%clk
0:03:00.2]} 5... Bf5 {[%clk 0:02:58.5]} 6. e3 {[%clk 0:02:59.6]} 6... Bd6 {[%clk
0:02:58.4]} 7. Bxd6 {[%clk 0:02:58.7]} 7... Qxd6 {[%clk 0:02:59.3]} 8. Bd3
{[%clk 0:02:59.1]} 8... Bxd3 {[%clk 0:02:58.7]} 9. Qxd3 {[%clk 0:03:00]} 9...
Nf6 {[%clk 0:02:59.4]} 10. Nge2 {[%clk 0:02:58.6]} 10... Nbd7 {[%clk 0:02:59.2]}
11. Rb1 {[%clk 0:02:56.4]} 11... a5 {[%clk 0:02:55]} 12. a3 {[%clk 0:02:56.4]}
12... O-O {[%clk 0:02:54]} 13. b4 {[%clk 0:02:56.6]} 13... axb4 {[%clk
0:02:54.9]} 14. axb4 {[%clk 0:02:57.5]} 14... b5 {[%clk 0:02:55.5]} 15. O-O
{[%clk 0:02:56.1]} 15... Nb6 {[%clk 0:02:55.8]} 16. Ng3 {[%clk 0:02:49.6]} 16...
Nc4 {[%clk 0:02:52.9]} 17. e4 {[%clk 0:02:49.8]} 17... dxe4 {[%clk 0:02:49]} 18.
Ncxe4 {[%clk 0:02:49]} 18... Nxe4 {[%clk 0:02:49.1]} 19. Nxe4 {[%clk 0:02:49.5]}
19... Qg6 {[%clk 0:02:49.6]} 20. Rfe1 {[%clk 0:02:39.3]} 20... Rad8 {[%clk
0:02:45.7]} 21. Rbd1 {[%clk 0:02:37]} 21... h6 {[%clk 0:02:41]} 22. Qf3 {[%clk
0:02:35.4]} 22... Rfe8 {[%clk 0:02:40]} 23. h3 {[%clk 0:02:28.5]} 23... Kh7
{[%clk 0:02:22.4]} 24. Re2 {[%clk 0:02:21.5]} 24... Re6 {[%clk 0:02:20.4]} 25.
Nc5 {[%clk 0:02:21.1]} 25... Rf6 {[%clk 0:02:18.2]} 26. Qe4 {[%clk 0:02:17.2]}
26... Rfd6 {[%clk 0:01:40.1]} 27. Nb7 {[%clk 0:02:12.9]} 27... Qxe4 {[%clk
0:01:19.3]} 28. Rxe4 {[%clk 0:02:13.8]} 28... f5 {[%clk 0:01:20]} 29. Ree1
{[%clk 0:02:02.9]} 29... Ra8 {[%clk 0:01:03.2]} 30. Nxd6 {[%clk 0:02:02.1]}
30... Nxd6 {[%clk 0:01:04.1]} 31. Re6 {[%clk 0:02:00.5]} 31... Rd8 {[%clk
0:01:02.7]} 32. Rc1 {[%clk 0:01:59.2]} 32... Nc4 {[%clk 0:00:59.5]} 33. Rxc6
{[%clk 0:01:58.8]} 33... Rxd4 {[%clk 0:00:59.8]} 34. Rc5 {[%clk 0:01:58.9]}
34... Nd6 {[%clk 0:00:59]} 35. Rb1 {[%clk 0:01:54.2]} 35... h5 {[%clk
0:00:49.6]} 36. Kf1 {[%clk 0:01:54]} 36... g6 {[%clk 0:00:47.5]} 37. Ke2 {[%clk
0:01:54]} 37... Kh6 {[%clk 0:00:40.8]} 38. Rc6 {[%clk 0:01:52]} 38... Ne4 {[%clk
0:00:39.9]} 39. Ke3 {[%clk 0:01:43]} 39... Rd5 {[%clk 0:00:31.8]} 40. f3 {[%clk
0:01:39.3]} 40... Nd2 {[%clk 0:00:31.5]} 41. Rd1 {[%clk 0:01:31.2]} 41... Nc4+
{[%clk 0:00:18.2]} 42. Ke2 {[%clk 0:01:31.5]} 42... Re5+ {[%clk 0:00:18.6]} 43.
Kf2 {[%clk 0:01:31]} 43... Re3 {[%clk 0:00:18.8]} 44. Rxc4 {[%clk 0:01:27.9]}
1-0

[Event "Early-Titled-Tuesday-Blitz-April-16-2024"]
[Site "Chess.com"]
[Date "2024.04.16"]
[Round "7"]
[White "Fernando_Offermann"]
[Black "lefonghua"]
[Result "0-1"]
[WhiteElo "2448"]
[BlackElo "2593"]
[TimeControl "180+1"]
[EndTime "9:20:14 PDT"]
[Termination "lefonghua won by resignation"]

1. e4 {[%clk 0:03:00.1]} 1... c5 {[%clk 0:03:00.1]} 2. Nf3 {[%clk 0:02:59.5]}
2... g6 {[%clk 0:03:00.4]} 3. d4 {[%clk 0:02:58.7]} 3... cxd4 {[%clk 0:03:01.3]}
4. Qxd4 {[%clk 0:02:59]} 4... Nf6 {[%clk 0:03:01.4]} 5. Qa4 {[%clk 0:02:57.4]}
5... Nc6 {[%clk 0:02:57.2]} 6. Nc3 {[%clk 0:02:54.5]} 6... d6 {[%clk 0:02:55.9]}
7. Bf4 {[%clk 0:02:51]} 7... Bg7 {[%clk 0:02:53.8]} 8. Rd1 {[%clk 0:02:50.5]}
8... Bd7 {[%clk 0:02:50.4]} 9. Bb5 {[%clk 0:02:40.3]} 9... O-O {[%clk
0:02:46.9]} 10. O-O {[%clk 0:02:39.2]} 10... a6 {[%clk 0:02:43.7]} 11. Bxc6
{[%clk 0:02:39.1]} 11... Bxc6 {[%clk 0:02:44.6]} 12. Qc4 {[%clk 0:02:39.2]}
12... Rc8 {[%clk 0:02:35.5]} 13. Qe2 {[%clk 0:02:38.6]} 13... Qa5 {[%clk
0:02:29.4]} 14. Nd4 {[%clk 0:02:33]} 14... Bd7 {[%clk 0:02:08.9]} 15. Nb3 {[%clk
0:02:32.5]} 15... Qc7 {[%clk 0:02:02.2]} 16. e5 {[%clk 0:02:30.1]} 16... Nh5
{[%clk 0:01:53.6]} 17. exd6 {[%clk 0:02:17.6]} 17... Nxf4 {[%clk 0:01:52.3]} 18.
Qf3 {[%clk 0:02:17.9]} 18... exd6 {[%clk 0:01:41.3]} 19. Qxf4 {[%clk 0:02:18]}
19... Bxc3 {[%clk 0:01:39.6]} 20. bxc3 {[%clk 0:02:17]} 20... Qxc3 {[%clk
0:01:38.8]} 21. Qxd6 {[%clk 0:02:17.3]} 21... Bb5 {[%clk 0:01:33.3]} 22. Rfe1
{[%clk 0:02:14.9]} 22... Qxc2 {[%clk 0:01:32]} 23. Rd2 {[%clk 0:02:08.5]} 23...
Qc3 {[%clk 0:01:25.2]} 24. h3 {[%clk 0:02:08.6]} 24... Qc7 {[%clk 0:01:14.7]}
25. Qf6 {[%clk 0:02:04.7]} 25... Qc3 {[%clk 0:01:11.2]} 26. Qg5 {[%clk
0:02:00.1]} 26... Bc4 {[%clk 0:01:06.2]} 27. Re3 {[%clk 0:01:59.8]} 27... Qg7
{[%clk 0:01:02.8]} 28. Re7 {[%clk 0:01:58]} 28... Bxb3 {[%clk 0:00:57.6]} 29.
axb3 {[%clk 0:01:58.9]} 29... b5 {[%clk 0:00:49.7]} 30. Rdd7 {[%clk 0:01:58]}
30... Qa1+ {[%clk 0:00:43.5]} 31. Kh2 {[%clk 0:01:57.8]} 31... Rc1 {[%clk
0:00:43.8]} 32. Rxf7 {[%clk 0:01:48.2]} 32... Rxf7 {[%clk 0:00:31.1]} 33. Qd5
{[%clk 0:01:34.1]} 33... Rh1+ {[%clk 0:00:21.5]} 34. Kg3 {[%clk 0:01:34]} 34...
Qc3+ {[%clk 0:00:22.1]} 35. f3 {[%clk 0:01:30.9]} 35... Qf6 {[%clk 0:00:15.4]}
36. Kf2 {[%clk 0:01:14.7]} 36... Rc1 {[%clk 0:00:10.2]} 37. Rd6 {[%clk
0:01:10.8]} 37... Rc2+ {[%clk 0:00:07.9]} 38. Ke3 {[%clk 0:01:07.8]} 38... Qf4+
{[%clk 0:00:07.2]} 39. Kd3 {[%clk 0:01:07.1]} 39... Rd2+ {[%clk 0:00:07.6]} 0-1

[Event "Early-Titled-Tuesday-Blitz-April-16-2024"]
[Site "Chess.com"]
[Date "2024.04.16"]
[Round "7"]
[White "azikom"]
[Black "Pedrada88"]
[Result "1-0"]
[WhiteElo "2708"]
[BlackElo "2575"]
[TimeControl "180+1"]
[EndTime "9:20:16 PDT"]
[Termination "azikom won by resignation"]

1. d4 {[%clk 0:03:00.5]} 1... Nf6 {[%clk 0:02:59.6]} 2. Bf4 {[%clk 0:02:58.4]}
2... b6 {[%clk 0:02:57.5]} 3. e3 {[%clk 0:02:58]} 3... Bb7 {[%clk 0:02:57.2]} 4.
Nf3 {[%clk 0:02:58.3]} 4... g6 {[%clk 0:02:56.6]} 5. h3 {[%clk 0:02:58]} 5...
Bg7 {[%clk 0:02:56.9]} 6. Bh2 {[%clk 0:02:55.7]} 6... O-O {[%clk 0:02:56.9]} 7.
Be2 {[%clk 0:02:56.3]} 7... d6 {[%clk 0:02:57.3]} 8. O-O {[%clk 0:02:57]} 8...
Nbd7 {[%clk 0:02:56.5]} 9. c4 {[%clk 0:02:57.1]} 9... Re8 {[%clk 0:02:56.4]} 10.
Nc3 {[%clk 0:02:57.5]} 10... e5 {[%clk 0:02:56.3]} 11. Qc2 {[%clk 0:02:56]}
11... Qe7 {[%clk 0:02:45.9]} 12. Rfd1 {[%clk 0:02:56.2]} 12... e4 {[%clk
0:02:45.7]} 13. Nd2 {[%clk 0:02:55.8]} 13... h5 {[%clk 0:02:45]} 14. b4 {[%clk
0:02:55.2]} 14... a5 {[%clk 0:02:43.4]} 15. a3 {[%clk 0:02:51.2]} 15... axb4
{[%clk 0:02:43.2]} 16. axb4 {[%clk 0:02:51.2]} 16... Bh6 {[%clk 0:02:37.8]} 17.
Rxa8 {[%clk 0:02:49.7]} 17... Rxa8 {[%clk 0:02:37.7]} 18. Nb5 {[%clk 0:02:50.4]}
18... Nf8 {[%clk 0:02:32.6]} 19. c5 {[%clk 0:02:36.4]} 19... dxc5 {[%clk
0:02:19.4]} 20. bxc5 {[%clk 0:02:31.9]} 20... Nd5 {[%clk 0:02:17.2]} 21. cxb6
{[%clk 0:02:28]} 21... cxb6 {[%clk 0:02:14.4]} 22. Bd6 {[%clk 0:02:04.9]} 22...
Qd7 {[%clk 0:01:59.8]} 23. Nxe4 {[%clk 0:02:00.2]} 23... Ne6 {[%clk 0:01:25.7]}
24. Qb3 {[%clk 0:01:55.8]} 24... Bg7 {[%clk 0:01:21]} 25. Be5 {[%clk 0:01:43.7]}
25... Bc6 {[%clk 0:01:02.1]} 26. Ned6 {[%clk 0:01:35.7]} 26... f6 {[%clk
0:00:49.5]} 27. Bg3 {[%clk 0:01:34.1]} 27... Bf8 {[%clk 0:00:49.2]} 28. Bc4
{[%clk 0:01:32.4]} 28... Kh7 {[%clk 0:00:14.5]} 29. Bxd5 {[%clk 0:01:30.7]}
29... Bxd5 {[%clk 0:00:11]} 30. Qxd5 {[%clk 0:01:30.8]} 30... Ra5 {[%clk
0:00:11.2]} 31. Qb3 {[%clk 0:01:20.3]} 31... f5 {[%clk 0:00:08.3]} 32. Be5
{[%clk 0:01:19.3]} 32... Ng5 {[%clk 0:00:05.4]} 33. Rc1 {[%clk 0:01:12.9]} 33...
Bxd6 {[%clk 0:00:04.3]} 34. Nxd6 {[%clk 0:01:12.2]} 34... Ne4 {[%clk 0:00:04]}
35. Nxe4 {[%clk 0:01:11.4]} 35... fxe4 {[%clk 0:00:04.9]} 36. Rc7 {[%clk
0:01:11.5]} 36... Ra1+ {[%clk 0:00:05.4]} 37. Kh2 {[%clk 0:01:11]} 37... Qxc7
{[%clk 0:00:05.9]} 38. Bxc7 {[%clk 0:01:10.6]} 38... b5 {[%clk 0:00:06.5]} 39.
Qf7+ {[%clk 0:01:10]} 1-0

[Event "Early-Titled-Tuesday-Blitz-April-16-2024"]
[Site "Chess.com"]
[Date "2024.04.16"]
[Round "7"]
[White "le-castor-faineant"]
[Black "kritipatel"]
[Result "0-1"]
[WhiteElo "2320"]
[BlackElo "2185"]
[TimeControl "180+1"]
[EndTime "9:20:17 PDT"]
[Termination "kritipatel won by resignation"]

1. e4 {[%clk 0:03:00.9]} 1... e5 {[%clk 0:02:59.3]} 2. Nf3 {[%clk 0:03:00.4]}
2... Nc6 {[%clk 0:02:59.5]} 3. Bb5 {[%clk 0:03:00.6]} 3... a6 {[%clk 0:02:59.1]}
4. Ba4 {[%clk 0:03:00.5]} 4... Nf6 {[%clk 0:02:59.2]} 5. Qe2 {[%clk 0:03:00.9]}
5... b5 {[%clk 0:02:57]} 6. Bb3 {[%clk 0:03:00.7]} 6... Bc5 {[%clk 0:02:57.2]}
7. a4 {[%clk 0:03:00.6]} 7... Rb8 {[%clk 0:02:56.5]} 8. axb5 {[%clk 0:02:59.4]}
8... axb5 {[%clk 0:02:56.4]} 9. Nc3 {[%clk 0:03:00.3]} 9... b4 {[%clk
0:02:49.8]} 10. Nd5 {[%clk 0:03:00.2]} 10... O-O {[%clk 0:02:37.2]} 11. d3
{[%clk 0:02:59.4]} 11... Nxd5 {[%clk 0:02:34]} 12. Bxd5 {[%clk 0:02:58.5]} 12...
Nd4 {[%clk 0:02:32.6]} 13. Nxd4 {[%clk 0:02:58.3]} 13... Bxd4 {[%clk 0:02:31.3]}
14. O-O {[%clk 0:02:57.8]} 14... c6 {[%clk 0:02:27.5]} 15. Bb3 {[%clk
0:02:55.8]} 15... d5 {[%clk 0:02:18]} 16. exd5 {[%clk 0:02:55.1]} 16... cxd5
{[%clk 0:02:18.4]} 17. Ra2 {[%clk 0:02:55.3]} 17... Qf6 {[%clk 0:02:10.2]} 18.
Be3 {[%clk 0:02:54.5]} 18... Bxe3 {[%clk 0:01:38.8]} 19. fxe3 {[%clk 0:02:55.4]}
19... Qd6 {[%clk 0:01:33.3]} 20. e4 {[%clk 0:02:52.2]} 20... dxe4 {[%clk
0:01:27.5]} 21. Qxe4 {[%clk 0:02:47.6]} 21... Bb7 {[%clk 0:00:51.2]} 22. Qc4
{[%clk 0:02:46.2]} 22... Qg6 {[%clk 0:00:39.9]} 23. Rf2 {[%clk 0:02:37.5]} 23...
h6 {[%clk 0:00:16.1]} 24. Ra1 {[%clk 0:02:36.6]} 24... Bc8 {[%clk 0:00:14]} 25.
Raf1 {[%clk 0:02:36.1]} 25... Be6 {[%clk 0:00:14.3]} 26. Qc7 {[%clk 0:02:19.4]}
26... Bxb3 {[%clk 0:00:13.6]} 27. cxb3 {[%clk 0:02:20.3]} 27... Rbc8 {[%clk
0:00:12]} 28. Qxe5 {[%clk 0:02:19.5]} 28... Qxd3 {[%clk 0:00:12.6]} 29. Qa5
{[%clk 0:02:13.8]} 29... Qxb3 {[%clk 0:00:12.3]} 30. Qa7 {[%clk 0:02:12.1]}
30... Rc2 {[%clk 0:00:10.9]} 31. Rxc2 {[%clk 0:02:04.9]} 31... Qxc2 {[%clk
0:00:11.4]} 32. Qf2 {[%clk 0:02:05.8]} 32... Qc4 {[%clk 0:00:10.7]} 33. h3
{[%clk 0:02:04.2]} 33... b3 {[%clk 0:00:11.2]} 34. Qf4 {[%clk 0:02:02.7]} 34...
Qc5+ {[%clk 0:00:10.5]} 35. Qf2 {[%clk 0:02:02.3]} 35... Qc4 {[%clk 0:00:09.9]}
36. Qf4 {[%clk 0:02:02.5]} 36... Qd3 {[%clk 0:00:10.2]} 37. Rf3 {[%clk
0:01:57.7]} 37... Qb1+ {[%clk 0:00:09.7]} 38. Kh2 {[%clk 0:01:57.4]} 38... Qxb2
{[%clk 0:00:10.3]} 39. Qb4 {[%clk 0:01:50]} 39... Qe5+ {[%clk 0:00:10.7]} 40.
Qf4 {[%clk 0:01:45.5]} 40... Qxf4+ {[%clk 0:00:09.9]} 41. Rxf4 {[%clk
0:01:46.4]} 41... Rb8 {[%clk 0:00:10.3]} 42. Rf1 {[%clk 0:01:46.2]} 42... b2
{[%clk 0:00:10.9]} 43. Rb1 {[%clk 0:01:47.1]} 43... Kf8 {[%clk 0:00:11.5]} 44.
Kg1 {[%clk 0:01:47.4]} 44... Ke7 {[%clk 0:00:12.1]} 45. Kf2 {[%clk 0:01:48.3]}
45... Ke6 {[%clk 0:00:12.7]} 46. Ke2 {[%clk 0:01:48.8]} 46... Kf5 {[%clk
0:00:13.2]} 47. Kf2 {[%clk 0:01:47.1]} 47... g5 {[%clk 0:00:13.5]} 48. g3 {[%clk
0:01:45.7]} 48... Ke4 {[%clk 0:00:13.9]} 49. Ke2 {[%clk 0:01:45.5]} 49... f5
{[%clk 0:00:14.4]} 50. Kf2 {[%clk 0:01:43.3]} 50... Rb3 {[%clk 0:00:14.9]} 0-1